fUST/lending_fUST_20251012
["ID","MTS","AMOUNT","RATE_DAILY","PERIOD"]
[390968802,1760239845590,-151.0,0.00024628,7]
[390968803,1760239845599,-666.125043,0.00024628,7]
[390968804,1760239845608,-211.804455,0.00024628,7]
[390968805,1760239845617,-151.0,0.00024628,7]
[390968806,1760239845627,-211.804455,0.00024628,7]
[390968807,1760239845754,-151.0,0.00024628,7]
[390968808,1760239845765,-211.804455,0.00024628,7]
[390968809,1760239845774,-152.183287,0.00024628,7]
[390968810,1760239845783,-151.0,0.00024628,7]
[390968811,1760239845791,-151.0,0.00024628,7]
[390968812,1760239845800,-598.262941,0.00024628,7]
[390968813,1760239845815,-151.0,0.00024628,7]
[390968814,1760239845824,-598.262941,0.00024628,7]
[390968815,1760239845838,-151.0,0.00024628,7]
[390968816,1760239845847,-598.262941,0.00024628,7]
[390968817,1760239845858,-151.0,0.00024628,7]
[390968818,1760239845868,-598.262941,0.00024628,7]
[390968819,1760239845880,-152.415686,0.00024628,7]
[390968820,1760239845892,-151.0,0.00024628,7]
[390968821,1760239845902,-151.0,0.00024628,7]
[390968822,1760239845911,-151.0,0.00024628,7]
[390968823,1760239845920,-151.0,0.00024628,7]
[390968824,1760239845930,-151.0,0.00024628,7]
[390968825,1760239845939,-199.564049,0.00024628,7]
[390968826,1760239845949,-151.0,0.00024628,7]
[390968827,1760239845958,-212.945569,0.00024628,7]
[390968828,1760239845969,-151.0,0.00024628,7]
[390968829,1760239845979,-151.0,0.00024628,7]
[390968830,1760239845988,-151.0,0.00024628,7]
[390968831,1760239845998,-151.0,0.00024628,7]
[390968832,1760239846008,-151.0,0.00024628,7]
[390968833,1760239846017,-151.0,0.00024628,7]
[390968834,1760239846027,-151.0,0.00024628,7]
[390968835,1760239846036,-151.0,0.00024628,7]
[390968836,1760239846051,-881.428548,0.00024628,7]
[390968837,1760239846060,-881.428548,0.00024628,7]
[390968838,1760239846069,-881.428548,0.00024628,7]
[390968839,1760239846079,-881.428548,0.00024628,7]
[390968840,1760239846089,-151.0,0.00024628,7]
[390968841,1760239846098,-151.0,0.00024628,7]
[390968842,1760239846107,-460.0,0.00024631,2]
[390968843,1760239846116,-150.0,0.00024673,2]
[390968844,1760239846125,-150.0,0.00024673,2]
[390968845,1760239846134,-2213.08587609,0.0002468,2]
[390968846,1760239846143,-1305.0,0.00024689,2]
[390968847,1760239846153,-1418.8187183,0.00024695,2]
[390968848,1760239846163,-151.0,0.00024698,7]
[390968849,1760239846172,-151.0,0.00024698,7]
[390968850,1760239846181,-168.042562,0.00024698,7]
[390968851,1760239846191,-151.0,0.00024698,7]
[390968852,1760239846200,-151.0,0.00024698,7]
[390968853,1760239846209,-168.042562,0.00024698,7]
[390968855,1760239846218,-168.042562,0.00024698,7]
[390968856,1760239846227,-168.042562,0.00024698,7]
[390968857,1760239846236,-151.0,0.00024698,7]
[390968858,1760239846245,-151.0,0.00024698,7]
[390968859,1760239846255,-153.259253,0.00024698,7]
[390968860,1760239846264,-151.0,0.00024698,7]
[390968861,1760239846274,-151.0,0.00024698,7]
[390968862,1760239846282,-151.0,0.00024698,7]
[390968863,1760239846291,-151.0,0.00024698,7]
[390968864,1760239846301,-151.0,0.00024698,7]
[390968865,1760239846310,-151.0,0.00024698,7]
[390968866,1760239846319,-153.89151,0.00024698,7]
[390968867,1760239846330,-151.0,0.00024698,7]
[390968868,1760239846339,-151.0,0.00024698,7]
[390968869,1760239846348,-1305.0,0.00024698,2]
[390968870,1760239846357,-1472.99197561,0.000247,2]
[390968871,1760239846367,-2123.0,0.00024722,2]
[390968872,1760239846376,-1595.76412691,0.00024785,2]
[390968873,1760239846385,-2035.6674218,0.00024785,2]
[390968874,1760239846395,-290.616,0.00024786,8]
[390968875,1760239846405,-28657.87693564,0.000248,3]
[390968876,1760239846415,-1567.9519887,0.000248,3]
[390968877,1760239846424,-3532.10756278,0.000248,2]
[390968878,1760239846433,-7713.1689748,0.000248,2]
[390968879,1760239846442,-1741.36134469,0.000248,4]
[390968880,1760239846451,-1009.97028714,0.00024821,2]
[390968881,1760239846460,-151.0,0.00024821,2]
[390968882,1760239846471,-162.85878165,0.00024821,2]
[390968883,1760239846480,-500.0,0.00024821,2]
[390968884,1760239846489,-18603.8837,0.00024821,2]
[390968885,1760239846499,-151.0,0.00024821,2]
[390968886,1760239846509,-500.0,0.00024821,2]
[390968887,1760239846518,-151.0,0.00024821,2]
[390968888,1760239846527,-483.74602766,0.00024821,2]
[390968889,1760239846537,-151.0,0.00024821,2]
[390968890,1760239846546,-153.26398906,0.00024821,2]
[390968891,1760239846556,-151.0,0.00024821,2]
[390968892,1760239846564,-250.0,0.00024821,2]
[390968893,1760239846574,-500.0,0.00024821,2]
[390968894,1760239846584,-151.0,0.00024821,2]
[390968896,1760239846593,-250.0,0.00024821,2]
[390968898,1760239846602,-500.0,0.00024821,2]
[390968899,1760239846611,-151.0,0.00024821,2]
[390968901,1760239846620,-250.0,0.00024821,2]
[390968902,1760239846629,-151.0,0.00024821,2]
[390968903,1760239846638,-500.0,0.00024821,2]
[390968904,1760239846648,-252.06122447,0.00024821,2]
[390968905,1760239846658,-500.0,0.00024821,2]
[390968906,1760239846667,-155.3830729,0.00024821,2]
[390968907,1760239846676,-500.0,0.00024821,2]
[390968908,1760239846685,-163.1743703,0.00024821,2]
[390968909,1760239846695,-151.0,0.00024821,2]
[390968910,1760239846704,-614.96583284,0.00024821,2]
[390968911,1760239846713,-500.0,0.00024821,2]
[390968912,1760239846725,-211.61315389,0.00024821,2]
[390968913,1760239846735,-500.0,0.00024821,2]
[390968914,1760239846744,-500.0,0.00024821,2]
[390968915,1760239846753,-500.0,0.00024821,2]
[390968916,1760239846763,-500.0,0.00024821,2]
[390968917,1760239846772,-190.77124641,0.00024821,2]
[390968918,1760239846781,-521.56339739,0.00024821,2]
[390968919,1760239846790,-1000.0,0.00024821,2]
[390968920,1760239846800,-1000.0,0.00024821,2]
[390968921,1760239846815,-1000.0,0.00024821,2]
[390968922,1760239846824,-1000.0,0.00024821,2]
[390968923,1760239846833,-1000.0,0.00024821,2]
[390968924,1760239846842,-151.34351314,0.00024821,2]
[390968925,1760239846853,-1000.0,0.00024821,2]
[390968926,1760239846863,-1000.0,0.00024821,2]
[390968927,1760239846871,-1000.0,0.00024821,2]
[390968928,1760239846882,-1000.0,0.00024821,2]
[390968929,1760239846890,-1000.0,0.00024821,2]
[390968930,1760239846899,-1000.0,0.00024821,2]
[390968931,1760239846909,-1000.0,0.00024821,2]
[390968932,1760239846917,-1000.0,0.00024821,2]
[390968933,1760239846927,-557.39742113,0.00024821,2]
[390968934,1760239846936,-1305.0,0.00024845,2]
[390968935,1760239846945,-157.728,0.00024899,2]
[390968936,1760239846954,-1930.84917189,0.000249,2]
[390968937,1760239846963,-177.73528589,0.000249,2]
[390968938,1760239846973,-1111.76823906,0.000249,2]
[390968939,1760239846983,-4223.61441706,0.000249,2]
[390968940,1760239846992,-806.01137287,0.000249,2]
[390968941,1760239847001,-755.13452956,0.000249,2]
[390968942,1760239847011,-284.32172976,0.000249,2]
[390968943,1760239847019,-160.17643406,0.000249,2]
[390968944,1760239847029,-151.0,0.000249,2]
[390968945,1760239847038,-151.0,0.000249,2]
[390968946,1760239847047,-151.0,0.000249,7]
[390968947,1760239847056,-151.0,0.000249,7]
[390968948,1760239847065,-151.0,0.000249,7]
[390968949,1760239847074,-151.0,0.000249,7]
[390968950,1760239847083,-151.0,0.000249,7]
[390968951,1760239847092,-153.330675,0.000249,7]
[390968952,1760239847101,-151.0,0.000249,7]
[390968953,1760239847110,-151.0,0.000249,7]
[390968954,1760239847119,-151.0,0.000249,7]
[390968955,1760239847128,-151.0,0.000249,7]
[390968956,1760239847138,-649.657922,0.000249,7]
[390968957,1760239847147,-649.657922,0.000249,7]
[390968958,1760239847156,-649.657922,0.000249,7]
[390968959,1760239847166,-649.657922,0.000249,7]
[390968960,1760239847175,-175.664835,0.000249,7]
[390968961,1760239847184,-175.664835,0.000249,7]
[390968962,1760239847193,-175.664835,0.000249,7]
[390968963,1760239847203,-175.664835,0.000249,7]
[390968964,1760239847213,-151.0,0.000249,7]
[390968965,1760239847223,-151.0,0.000249,7]
[390968966,1760239847232,-203.611045,0.000249,7]
[390968967,1760239847244,-263.415969,0.000249,7]
[390968968,1760239847253,-263.415969,0.000249,7]
[390968969,1760239847263,-263.415969,0.000249,7]
[390968970,1760239847272,-263.415969,0.000249,7]
[390968971,1760239847281,-151.0,0.000249,7]
[390968972,1760239847290,-151.0,0.000249,7]
[390968973,1760239847299,-168.042562,0.000249,7]
[390968974,1760239847308,-151.0,0.000249,7]
[390968975,1760239847318,-151.0,0.000249,7]
[390968976,1760239847327,-168.042562,0.000249,7]
[390968977,1760239847336,-168.042562,0.000249,7]
[390968978,1760239847346,-168.042562,0.000249,7]
[390968979,1760239847355,-151.0,0.000249,7]
[390968980,1760239847364,-151.0,0.000249,7]
[390968981,1760239847373,-151.0,0.000249,7]
[390968982,1760239847382,-151.0,0.000249,7]
[390968983,1760239847392,-151.0,0.000249,7]
[390968984,1760239847401,-151.0,0.000249,7]
[390968985,1760239847411,-151.0,0.000249,7]
[390968986,1760239847420,-151.0,0.000249,7]
[390968987,1760239847429,-246.75131,0.000249,7]
[390968988,1760239847439,-151.0,0.000249,7]
[390968989,1760239847448,-151.0,0.000249,7]
[390968990,1760239847457,-879.262409,0.000249,7]
[390968991,1760239847467,-879.262409,0.000249,7]
[390968992,1760239847476,-879.262409,0.000249,7]
[390968993,1760239847485,-879.262409,0.000249,7]
[390968994,1760239847495,-288.947158,0.000249,7]
[390968995,1760239847503,-288.947158,0.000249,7]
[390968996,1760239847512,-288.947158,0.000249,7]
[390968997,1760239847522,-288.947158,0.000249,7]
[390968998,1760239847531,-151.0,0.000249,7]
[390968999,1760239847541,-157.519161,0.000249,7]
[390969000,1760239847550,-157.519161,0.000249,7]
[390969001,1760239847560,-157.519161,0.000249,7]
[390969002,1760239847570,-157.519161,0.000249,7]
[390969003,1760239847579,-151.0,0.000249,7]
[390969004,1760239847589,-151.0,0.000249,7]
[390969005,1760239847598,-151.0,0.000249,7]
[390969006,1760239847608,-151.0,0.000249,7]
[390969007,1760239847621,-151.0,0.000249,7]
[390969008,1760239847631,-151.0,0.000249,7]
[390969009,1760239847639,-151.0,0.000249,7]
[390969010,1760239847649,-151.0,0.000249,7]
[390969011,1760239847658,-151.0,0.000249,7]
[390969012,1760239847668,-151.0,0.000249,7]
[390969013,1760239847677,-151.0,0.000249,7]
[390969014,1760239847686,-306.753128,0.000249,7]
[390969015,1760239847695,-151.0,0.000249,7]
[390969016,1760239847704,-306.753128,0.000249,7]
[390969017,1760239847714,-306.753128,0.000249,7]
[390969018,1760239847723,-262.646847,0.000249,7]
[390969019,1760239847732,-306.753128,0.000249,7]
[390969020,1760239847741,-151.846725,0.000249,7]
[390969021,1760239847751,-439126.353103,0.000249,2]
[390969022,1760239847760,-196.172456,0.000249,7]
[390969023,1760239847769,-196.172456,0.000249,7]
[390969024,1760239847778,-151.0,0.000249,7]
[390969025,1760239847787,-196.172456,0.000249,7]
[390969026,1760239847796,-196.172456,0.000249,7]
[390969027,1760239847810,-163.082947,0.000249,7]
[390969028,1760239847825,-151.0,0.000249,7]
[390969029,1760239847834,-163.082947,0.000249,7]
[390969030,1760239847843,-163.082947,0.000249,7]
[390969031,1760239847852,-163.082947,0.000249,7]
[390969032,1760239847862,-666.125043,0.000249,7]
[390969033,1760239847872,-666.125043,0.000249,7]
[390969034,1760239847881,-666.125043,0.000249,7]
[390969035,1760239847890,-211.804455,0.000249,7]
[390969036,1760239847900,-151.0,0.000249,7]
[390969037,1760239847909,-666.125043,0.000249,7]
[390969038,1760239847918,-211.804455,0.000249,7]
[390969039,1760239847927,-151.0,0.000249,7]
[390969040,1760239847937,-211.804455,0.000249,7]
[390969041,1760239847946,-156.948334,0.000249,7]
[390969042,1760239847957,-211.804455,0.000249,7]
[390969043,1760239847967,-152.374458,0.000249,7]
[390969044,1760239847978,-151.0,0.000249,7]
[390969045,1760239847987,-598.262941,0.000249,7]
[390969046,1760239847996,-151.0,0.000249,7]
[390969047,1760239848006,-598.262941,0.000249,7]
[390969048,1760239848015,-151.0,0.000249,7]
[390969049,1760239848025,-598.262941,0.000249,7]
[390969050,1760239848034,-271.145248,0.000249,7]
[390969051,1760239848043,-598.262941,0.000249,7]
[390969052,1760239848053,-151.0,0.000249,7]
[390969053,1760239848062,-253.064066,0.000249,7]
[390969054,1760239848071,-151.0,0.000249,7]
[390969055,1760239848081,-151.0,0.000249,7]
[390969056,1760239848090,-151.0,0.000249,7]
[390969057,1760239848099,-151.0,0.000249,7]
[390969058,1760239848136,-151.0,0.000249,7]
[390969059,1760239848145,-151.0,0.000249,7]
[390969060,1760239848154,-151.0,0.000249,7]
[390969061,1760239848164,-160.043253,0.000249,7]
[390969062,1760239848173,-151.0,0.000249,7]
[390969063,1760239848182,-151.0,0.000249,7]
[390969064,1760239848191,-159.798529,0.000249,7]
[390969065,1760239848201,-168.740516,0.000249,7]
[390969066,1760239848210,-881.428548,0.000249,7]
[390969067,1760239848220,-881.428548,0.000249,7]
[390969068,1760239848229,-881.428548,0.000249,7]
[390969069,1760239848239,-881.428548,0.000249,7]
[390969070,1760239848249,-151.0,0.000249,7]
[390969071,1760239848258,-151.0,0.000249,7]
[390969072,1760239848267,-2123.0,0.00024911,7]
[390969073,1760239848276,-1567.9519887,0.00024911,7]
[390969074,1760239848285,-418.91186962,0.00024916,2]
[390969075,1760239848295,-160.0,0.00024918,2]
[390969076,1760239848303,-1567.9519887,0.00024934,2]
[390969077,1760239848312,-1305.0,0.00024937,2]
[390969078,1760239848322,-1418.8187183,0.00024996,2]
[390969079,1760239848331,-150.99999953,0.00025,5]
[390969080,1760239848339,-2164.20331146,0.00025012,2]
[390969081,1760239848349,-2000.0,0.00025012,2]
[390969082,1760239848358,-1305.0,0.0002503,2]
[390969083,1760239848367,-501.19283632,0.00025068,2]
[390969084,1760239848376,-1001.37887223,0.00025068,2]
[390969085,1760239848385,-1500.0,0.00025068,2]
[390969086,1760239848394,-500.0,0.00025166,7]
[390969087,1760239848403,-560.0,0.00025179,2]
[390969088,1760239848412,-1930.84917189,0.000252,2]
[390969089,1760239848421,-177.73528589,0.000252,2]
[390969090,1760239848431,-1111.76823906,0.000252,2]
[390969091,1760239848439,-4223.61441706,0.000252,2]
[390969092,1760239848448,-806.01137287,0.000252,2]
[390969093,1760239848457,-755.13452956,0.000252,2]
[390969094,1760239848467,-284.32172976,0.000252,2]
[390969095,1760239848477,-160.17643406,0.000252,2]
[390969096,1760239848487,-592.32,0.00025205,7]
[390969097,1760239848495,-300.0,0.00025221,2]
[390969098,1760239848505,-250.0,0.00025221,2]
[390969099,1760239848514,-19292.2273969,0.00025369,2]
[390969100,1760239848523,-1930.84917189,0.000254,2]
[390969101,1760239848532,-177.73528589,0.000254,2]
[390969102,1760239848541,-1111.76823906,0.000254,2]
[390969103,1760239848550,-4223.61441706,0.000254,2]
[390969104,1760239848559,-806.01137287,0.000254,2]
[390969105,1760239848568,-755.13452956,0.000254,2]
[390969106,1760239848578,-284.32172976,0.000254,2]
[390969107,1760239848587,-1305.0,0.00025401,2]
[390969108,1760239848596,-1305.0,0.00025442,2]
[390969109,1760239848605,-1418.8187183,0.00025446,2]
[390969110,1760239848614,-592.32,0.00025479,8]
[390969111,1760239848623,-250.0,0.00025488,2]
[390969112,1760239848631,-454.8186013,0.00025516,2]
[390969113,1760239848641,-1305.0,0.0002558,2]
[390969114,1760239848650,-1509.95864256,0.00025616,2]
[390969115,1760239848659,-1418.8187189,0.00025684,2]
[390969116,1760239848669,-1930.84917189,0.000257,2]
[390969117,1760239848679,-677.68395644,0.000257,2]
[390969118,1760239848688,-2710.73582576,0.000257,2]
[390969119,1760239848697,-6093.05645235,0.000257,2]
[390969120,1760239848706,-1111.76823906,0.000257,2]
[390969121,1760239848715,-4223.61441706,0.000257,2]
[390969122,1760239848726,-806.01137287,0.000257,2]
[390969123,1760239848735,-755.13452956,0.000257,2]
[390969124,1760239848744,-284.32172976,0.000257,2]
[390969125,1760239848753,-654.38582449,0.000257,2]
[390969126,1760239848762,-2614.92575465,0.000257,2]
[390969127,1760239848771,-971.4396358,0.000257,2]
[390969128,1760239848781,-3881.87278465,0.000257,2]
[390969129,1760239848790,-450.42595223,0.00025727,2]
[390969130,1760239848799,-592.32,0.00025753,9]
[390969131,1760239848814,-350.0,0.00025768,2]
[390969132,1760239848823,-450.0,0.00025768,2]
[390969133,1760239848833,-3586.87881625,0.00025802,2]
[390969134,1760239848842,-4575.67144736,0.00025802,2]
[390969135,1760239848851,-587.0,0.00025873,2]
[390969136,1760239848860,-3074.43150757,0.00025917,2]
[390969137,1760239848869,-2213.08587609,0.00025948,2]
[390969138,1760239848879,-807.52882677,0.00025993,2]
[390969139,1760239848888,-1930.84917189,0.00026,2]
[390969140,1760239848898,-1111.76823906,0.00026,2]
[390969141,1760239848907,-4223.61441706,0.00026,2]
[390969142,1760239848916,-806.01137287,0.00026,2]
[390969143,1760239848925,-755.13452956,0.00026,2]
[390969144,1760239848934,-284.32172976,0.00026,2]
[390969145,1760239848943,-425.78937,0.00026,60]
[390969146,1760239848953,-592.32,0.00026027,10]
[390969147,1760239848962,-13279.83,0.00026027,2]
[390969148,1760239848973,-1305.0,0.00026083,2]
[390969149,1760239848982,-490.72533298,0.00026116,2]
[390969150,1760239848992,-2351.0,0.00026116,2]
[390969151,1760239849003,-818.0,0.00026171,2]
[390969152,1760239849013,-818.0,0.00026194,2]
[390969153,1760239849022,-818.0,0.00026198,2]
[390969154,1760239849032,-4223.61441706,0.000262,2]
[390969155,1760239849042,-1305.0,0.00026265,2]
[390969156,1760239849051,-592.32,0.00026301,11]
[390969157,1760239849060,-450.0,0.00026316,2]
[390969158,1760239849070,-600.0,0.00026316,2]
[390969159,1760239849079,-1305.0,0.00026357,2]
[390969160,1760239849089,-1305.0,0.00026368,2]
[390969161,1760239849098,-1305.0,0.00026416,2]
[390969162,1760239849108,-1305.0,0.00026426,2]
[390969163,1760239849117,-818.0,0.00026447,2]
[390969164,1760239849127,-4223.61441706,0.000265,2]
[390969165,1760239849136,-150.0,0.00026536,7]
[390969166,1760239849146,-592.32,0.00026575,12]
[390969167,1760239849155,-1305.0,0.0002658,2]
[390969168,1760239849164,-1061395.2102992,0.000266,2]
[390969169,1760239849309,-618.57028921,0.00021915,2]
[390969170,1760239849319,-1582.32,0.00021917,2]
[390969171,1760239849328,-501.75501672,0.00021917,2]
[390969172,1760239849338,-501.31133836,0.00021917,2]
[390969173,1760239849347,-1582.32,0.00021988,2]
[390969174,1760239849358,-905.26,0.00021989,2]
[390969175,1760239849368,-905.26,0.00021989,2]
[390969176,1760239849377,-905.26,0.00021989,2]
[390969177,1760239849387,-905.47,0.00021989,2]
[390969178,1760239849396,-1582.32,0.00022234,2]
[390969179,1760239849406,-1582.32,0.00022244,2]
[390969180,1760239849416,-1582.32,0.00022244,2]
[390969181,1760239849425,-1582.32,0.00022244,2]
[390969182,1760239849435,-1582.32,0.00022244,2]
[390969183,1760239849445,-622.08,0.00022245,2]
[390969184,1760239849454,-622.08,0.00022245,2]
[390969185,1760239849464,-622.08,0.00022245,2]
[390969186,1760239849477,-622.08,0.00022245,2]
[390969187,1760239849487,-622.08,0.00022245,2]
[390969188,1760239849497,-622.08,0.00022245,2]
[390969189,1760239849507,-622.08,0.00022245,2]
[390969190,1760239849517,-622.08,0.00022245,2]
[390969191,1760239849526,-151.0,0.00022246,2]
[390969192,1760239849536,-292.103747,0.00024,2]
[390969193,1760239849546,-128417.820993,0.000266,2]
[390969194,1760239849683,-500.57936197,0.00021917,2]
[390969195,1760239849692,-500.0,0.00021917,2]
[390969196,1760239849702,-500.0,0.00021917,2]
[390969197,1760239849711,-501.09069393,0.00021917,2]
[390969198,1760239849720,-403.04,0.00021917,2]
[390969199,1760239849730,-500.0,0.00021917,2]
[390969200,1760239849740,-500.83513219,0.00021917,2]
[390969201,1760239849749,-500.0,0.00021917,2]
[390969202,1760239849758,-500.0,0.00021917,2]
[390969203,1760239849767,-500.0,0.00021917,2]
[390969204,1760239849777,-1948.37,0.00022235,10]
[390969205,1760239849787,-1582.32,0.00022245,2]
[390969206,1760239849796,-622.08,0.00022245,2]
[390969207,1760239849807,-1582.32,0.00022245,2]
[390969208,1760239849818,-622.1,0.00022245,2]
[390969209,1760239849827,-500.0,0.00022245,2]
[390969210,1760239849836,-1582.32,0.00022245,2]
[390969211,1760239849847,-1582.32,0.00022245,2]
[390969212,1760239849856,-1582.32,0.00022245,2]
[390969213,1760239849866,-1582.32,0.00022245,2]
[390969214,1760239849876,-1582.32,0.00022245,2]
[390969215,1760239849886,-1582.32,0.00022245,2]
[390969216,1760239849896,-1582.32,0.00022245,2]
[390969217,1760239849905,-502.98511436,0.00022245,2]
[390969218,1760239849914,-1582.32,0.00022245,2]
[390969219,1760239849924,-875.28783946,0.00022245,2]
[390969220,1760239850033,-500.0,0.00021917,2]
[390969221,1760239850042,-90.0,0.00021917,2]
[390969222,1760239850054,-410.0,0.00021917,2]
[390969223,1760239850063,-500.0,0.00021917,2]
[390969224,1760239850073,-500.0,0.00021917,2]
[390969225,1760239850084,-500.0,0.00021917,2]
[390969226,1760239850094,-286.02330469,0.00021917,2]
[390969227,1760239910078,1353.04,0.00021807,10]
[390969228,1760239921489,1127.53,0.00021807,10]
[390969229,1760239933119,939.61,0.00021807,10]
[390969230,1760239944136,1053.62,0.00021807,10]
[390969231,1760239954482,878.01,0.00021807,10]
[390969232,1760239965736,731.68,0.00021807,10]
[390969233,1760239976686,532.63982241,0.00021807,10]
[390969234,1760239980075,-77.09017759,0.00021807,10]
[390969235,1760239980104,-283.86296508,0.00021816,2]
[390969236,1760239980132,-155.42351229,0.00021816,2]
[390969237,1760239980163,-500.0,0.00021816,2]
[390969238,1760239980193,-500.0,0.00021816,2]
[390969239,1760239980224,-500.0,0.00021816,2]
[390969240,1760239980252,-500.0,0.00021816,2]
[390969241,1760239980279,-213.49048399,0.00021816,2]
[390969242,1760239980306,-500.0,0.00021816,2]
[390969243,1760239980334,-500.0,0.00021816,2]
[390969244,1760239980366,-500.0,0.00021816,2]
[390969245,1760239980394,-340.28076388,0.00021816,2]
[390969246,1760239980422,-359.71419434,0.00021816,2]
[390969247,1760239986098,-300.0,0.00021815,2]
[390969248,1760239986127,-140.28580566,0.00021816,2]
[390969249,1760239986155,-500.0,0.00021816,2]
[390969250,1760239986182,-529.99999999,0.00021816,2]
[390969251,1760239986211,-500.0,0.00021816,2]
[390969252,1760239986239,-500.0,0.00021816,2]
[390969253,1760239986266,-500.0,0.00021816,2]
[390969254,1760239986294,-500.0,0.00021816,2]
[390969255,1760239986321,-378.62898999,0.00021816,2]
[390969256,1760239986349,-500.0,0.00021816,2]
[390969257,1760239986376,-195.23820056,0.00021816,2]
[390969258,1760239986404,-411.7040076,0.00021816,2]
[390969259,1760239990096,-513.55,0.00021807,10]
[390969260,1760239990128,-88.2959924,0.00021816,2]
[390969261,1760239990155,-499.99999999,0.00021816,2]
[390969262,1760239990182,-500.0,0.00021816,2]
[390969263,1760239990211,-500.0,0.00021816,2]
[390969264,1760239990238,-1200.0,0.00021816,2]
[390969265,1760239990266,-262.5545764,0.00021816,2]
[390969266,1760239996195,-478.35401602,0.00021816,2]
[390969267,1760239996227,-500.0,0.00021816,2]
[390969268,1760239996259,-500.0,0.00021816,2]
[390969269,1760239996289,-621.95206259,0.00021816,2]
[390969270,1760239996318,-500.0,0.00021816,2]
[390969271,1760239996345,-399.39144454,0.00021816,2]
[390969272,1760240000172,-513.55,0.00021807,10]
[390969273,1760240003037,-233.14,0.00021807,3]
[390969274,1760240004944,-5537.11274012,0.00021817,2]
[390969275,1760240004969,-10000.01,0.00021817,2]
[390969276,1760240005066,-10000.01,0.00021817,2]
[390969277,1760240005185,-10000.01,0.00021817,2]
[390969278,1760240005348,-10000.01,0.00021817,2]
[390969279,1760240005460,-10000.01,0.00021817,2]
[390969280,1760240005579,-10000.01,0.00021817,2]
[390969281,1760240008245,-10000.01,0.00021817,2]
[390969282,1760240008424,-10000.01,0.00021817,2]
[390969283,1760240008538,-10000.01,0.00021817,2]
[390969284,1760240021048,-1299.51,0.00021807,10]
[390969285,1760240021086,-699.42,0.00021807,3]
[390969286,1760240021147,-6002.15,0.00021817,2]
[390969287,1760240023302,150.0,0.0001907,2]
[390969288,1760240023711,198.16,0.00019978,2]
[390969289,1760240024104,297.24,0.00020886,2]
[390969290,1760240025434,-396.32,0.00021794,2]
[390969291,1760240025471,-2537.0,0.00021807,10]
[390969292,1760240025534,-4133.37,0.00021817,2]
[390969293,1760240025693,-10000.01,0.00021817,2]
[390969294,1760240025913,-10000.01,0.00021817,2]
[390969295,1760240026212,-10000.01,0.00021817,2]
[390969296,1760240029328,-10000.01,0.00021817,2]
[390969297,1760240029558,-10000.01,0.00021817,2]
[390969298,1760240029573,-10000.01,0.00021817,2]
[390969299,1760240029687,-10000.01,0.00021817,2]
[390969300,1760240039480,-3616.08398186,0.00021383,2]
[390969301,1760240039514,-2767.84203628,0.00021599,2]
[390969302,1760240039636,-154.30745514,0.00021599,2]
[390969303,1760240039682,-2077.85050858,0.00021599,2]
[390969304,1760240053885,5000.0,0.00021599,2]
[390969305,1760240055495,-2114.16,0.00021807,10]